Cogmind - Beta 15 @@@ ROGUE MODE // 2025.10.09 @ 11:46:56 Player: DietSnapple Result: Destroyed by D-53 Grenadier with Mini Grenade Launcher Performance ------------- Evolutions (0) 0 Regions Visited (2) 400 Robots Destroyed (19) 95 Value Destroyed (396) 396 Prototype IDs (0) 0 Alien Tech Used (0) 0 Bonus (0) 0 TOTAL SCORE: 891 Bonus ------- None Cogmind --------- Core Integrity 0/250 Matter 285/300 Energy 84/100 System Corruption 0% Temperature Cool (0) Movement Core (50) Location -10/Mines Parts ------- > --- POWER (1) -------- (None) > --- PROPULSION (2) --- (None) > --- UTILITY (2) ------ Hacking Suite > --- WEAPON (2) ------- (None) > --- INVENTORY (5) ---- Ion Engine Sensor Array ECM Suite Hacking Suite Grenade Launcher Peak State ------------ > --- POWER ------------ Ion Engine > --- PROPULSION ------- Light Treads Light Treads > --- UTILITY ---------- Improved Heat Sink Large Storage Unit > --- WEAPON ----------- Medium Laser Medium Laser > --- INVENTORY -------- Ion Engine Light Treads Light Treads Aluminum Leg Structural Scanner Sensor Array Seismic Detector Light Assault Rifle Light Assault Rifle Grenade Launcher [Rating: 10] Favorites ----------- Power Ion Engine Engine Ion Engine Propulsion Light Treads Treads Light Treads Wheel Compact Wheel Utility Large Storage Unit Device Improved Heat Sink Storage Large Storage Unit Hackware Hacking Suite Weapon Medium Laser Energy Gun Medium Laser Build | -11 -10 -10 ------- Run | Yrd Mat Min Slots Evolved . | . . . Power . | . . . Propulsion . | . . . Utility . | . . . Weapon . | . . . Parts Attached 13 | 6 5 2 Power 1 | 1 . . Engine 1 | 1 . . Core . | . . . Reactor . | . . . Propulsion 5 | 2 3 . Treads 4 | 2 2 . Leg . | . . . Wheel 1 | . 1 . Hover . | . . . Flight . | . . . Utility 5 | 1 2 2 Device 2 | . 1 1 Storage 2 | 1 1 . Processor . | . . . Hackware 1 | . . 1 Protection . | . . . Artifact . | . . . Weapon 2 | 2 . . Energy Gun 2 | 2 . . Energy Cannon . | . . . Ballistic Gun . | . . . Ballistic Cannon . | . . . Launcher . | . . . Special Weapon . | . . . Impact Weapon . | . . . Slashing Weapon . | . . . Piercing Weapon . | . . . Special Melee Weapon . | . . . Unidentified Prototypes . | . . . Parts Lost 2 | . 1 1 Power . | . . . Propulsion 1 | . 1 . Utility . | . . . Weapon 1 | . . 1 Highest Loss Streak 1 | . 1 1 To Critical Strikes . | . . . Average Backups 8 | 2 9 13 Power . | . 1 1 Propulsion 2 | 1 2 3 Utility 2 | . 2 6 Weapon 2 | . 2 3 Tool/Special . | . . . Unused Backups 9 | . . 9 Power 1 | . . 1 Propulsion 2 | . . 2 Utility 3 | . . 3 Weapon 3 | . . 3 Tool/Special . | . . . Average Slot Usage (%) 99 | . 99 100 Engine 14 | . 14 14 Treads 26 | . 26 28 Wheel 1 | . 1 . Device 10 | . 10 14 Storage 16 | . 17 14 Energy Gun 28 | . 28 28 Peak Build Rating 10 | 6 10 10 Average Rating 8 | 4 9 9 On Entrance 5 | . 6 10 Naked Turns . | . . . Heaviest Build 34 | 14 34 30 Greatest Support 40 | 40 40 40 Greatest Overweight (x) 2 | 2 1 . Average Overweight (x) . | . . . Largest Inventory Capacity 15 | 8 15 15 Average Capacity 14 | 6 14 14 Most Carried 13 | 4 13 13 Average Carried 8 | 2 9 12 Final Capacity 15 | 8 15 5 Final Carried 13 | 4 13 5 Class Distribution -------------------- 100% | Mutant Dominant Class ---------------- Mutant | -10/Materials Mutant | -10/Mines Resources | -11 -10 -10 ----------- Run | Yrd Mat Min Matter Collected 310 | 161 149 . Remotely . | . . . Salvage Created 516 | . 488 28 Parts 30 | . 28 2 Haulers Intercepted 1 | . 1 . Recyclers Shooed . | . . . Parts Field Recycled . | . . . Retrieved Matter . | . . . Parts Self-Destructed . | . . . Prevented . | . . . Kills | -11 -10 -10 ------- Run | Yrd Mat Min Combat Hostiles Destroyed 15 | . 13 2 Guns 14 | . 12 2 Classes Destroyed 5 | . 5 . Tunneler 1 | . 1 . Hauler 1 | . 1 . Operator 2 | . 2 . Swarmer 7 | . 5 2 Grunt 8 | . 8 . Best Kill Streak 5 | . 5 2 Combat Bots Only 5 | . 5 2 Max Kills in Single Turn 1 | . 1 1 Gunslinging . | . . . Exploded . | . . . Melee . | . . . Uniques/NPCs Destroyed . | . . . Combat | -11 -10 -10 -------- Run | Yrd Mat Min Hostile Shots Fired 89 | . 79 10 Missed 24 | . 23 1 Hits 65 | . 56 9 Projectile 65 | . 56 9 AOE 4 | . . 4 Damage Taken 782 | . 553 229 Core 262 | . 98 164 Absorbed by Shields . | . . . Core Remaining (%) 100 | 100 . . Volleys Fired 68 | . 66 2 Largest 2 | . 2 2 Hottest 100 | . 100 100 Shots Fired 131 | . 127 4 Gun 131 | . 127 4 Cannon . | . . . Launcher . | . . . Special . | . . . Kinetic . | . . . Thermal 131 | . 127 4 Explosive . | . . . Electromagnetic . | . . . Robot Hit Streak 8 | . 8 3 Robot Miss Streak 5 | . 5 1 Penetration Max . | . . . Secondary Targets . | . . . Shots Hit Robots 70 | . 67 3 Core Hits 31 | . 29 2 Critical Kills . | . . . Critical Parts Destroyed . | . . . Critical Strikes 8 | . 6 2 Burn 8 | . 6 2 Melee Attacks . | . . . Impact . | . . . Slashing . | . . . Piercing . | . . . Sneak Attacks . | . . . Combat Hostiles . | . . . Follow-up Attacks . | . . . Damage Inflicted 895 | . 857 38 Guns 895 | . 857 38 Cannons . | . . . Explosions . | . . . Melee . | . . . Ramming . | . . . Kinetic . | . . . Thermal 895 | . 857 38 Explosive . | . . . Electromagnetic . | . . . Impact . | . . . Slashing . | . . . Piercing . | . . . Highest Corruption . | . . . Average Corruption . | . . . Corruption Purged . | . . . Corruption Blocked . | . . . Overload Shots . | . . . Overflow Damage . | . . . Projectiles . | . . . Explosions . | . . . Melee . | . . . Knockbacks . | . . . Impact . | . . . Kinetic . | . . . Secondary . | . . . Self-Inflicted Damage . | . . . Shots . | . . . Rammed . | . . . Targets Rammed . | . . . Kicked . | . . . Crushed . | . . . Highest Temperature 359 | . 359 . Average Temperature 119 | . 119 . Received Heat Transfer 195 | . 195 . Effects 2 | . 2 . Shutdowns 1 | . 1 . Interference 1 | . 1 . Siege Activations . | . . . Martial Activations . | . . . Shielding Activations . | . . . Robots Disrupted . | . . . Combat Hostiles . | . . . Robots Corrupted . | . . . Combat Hostiles . | . . . Parts Fried . | . . . Impact Corruptions . | . . . Robots Melted 1 | . 1 . Combat Hostiles 1 | . 1 . Parts Melted 9 | . 8 1 Heat Transferred 3256 | . 2997 259 Parts Sabotaged . | . . . Parts Stolen . | . . . Parts Stripped . | . . . Power Chain Reactions . | . . . Alert | -11 -10 -10 ------- Run | Yrd Mat Min Maximum Alert Level . | . . . Low Security (%) 100 | 100 100 100 Level 1 . | . . . Level 2 . | . . . Level 3 . | . . . Level 4 . | . . . Level 5 . | . . . High Security . | . . . Max Security . | . . . Peak Influence 90 | . 90 65 Initial 8 | . . 8 Average 28 | . 32 19 Influence Increases 416 | . 351 65 Destroy 0b10 Robot/C 300 | . 260 40 Destroy 0b10 Robot/NC 20 | . 20 . Destroy Leader 72 | . 62 10 Successful Hack 7 | . 7 . Destroy Structure 2 | . 2 . Lose Combat Pursuer 15 | . . 15 Influence Decreases 381 | . 329 52 Entered New Map 14 | . . 14 Time Decay 347 | . 319 28 Lost Part 20 | . 10 10 Squads Dispatched 3 | . 3 . Investigation 1 | . 1 . Extermination . | . . . Reinforcement 2 | . 2 . Assault . | . . . Garrison . | . . . Intercept . | . . . Searches Triggered . | . . . Construction Impeded . | . . . Haulers Reinforced . | . . . Active Scanning Responses . | . . . Cargo Convoy Interrupts . | . . . Stealth | -11 -10 -10 --------- Run | Yrd Mat Min Distress Signals 2 | . 2 . Communications Jammed . | . . . Distress Signals . | . . . Times Spotted 33 | . 28 5 Peak Tracking Total 8 | . 8 3 Tactical Retreats 1 | . . 1 Traps | -11 -10 -10 ------- Run | Yrd Mat Min Traps Triggered 1 | . 1 . Indirectly . | . . . Trap Hack Attempts . | . . . Triggered . | . . . Disarmed . | . . . Reprogrammed . | . . . Reused . | . . . Traps Extracted . | . . . Installed . | . . . Triggered . | . . . Machines | -11 -10 -10 ---------- Run | Yrd Mat Min Machines Disabled . | . . . Max in Single Turn . | . . . Machines Repaired . | . . . Machines Dismantled . | . . . Machines Sabotaged . | . . . Overloaded Fab Kills . | . . . Hacking | -11 -10 -10 --------- Run | Yrd Mat Min Machines Accessed 3 | . 3 . Terminals 3 | . 3 . Fabricators . | . . . Repair Stations . | . . . Recycling Units . | . . . Scanalyzers . | . . . Garrison Access . | . . . Total Hacks 11 | . 11 . Successful 4 | . 4 . Failed 7 | . 7 . Catastrophic 2 | . 2 . Database Lockouts . | . . . Manual 11 | . 11 . Terminals 11 | . 11 . Fabricators . | . . . Repair Stations . | . . . Recycling Units . | . . . Scanalyzers . | . . . Garrison Access . | . . . Terminal Hacks 1 | . 1 . Recall Investigation 1 | . 1 . Fabricator Hacks . | . . . Repair Station Hacks . | . . . Recycling Unit Hacks . | . . . Scanalyzer . | . . . Garrison Access Hacks . | . . . Unauthorized Hacks 3 | . 3 . Terminals 3 | . 3 . Botnet 2 | . 2 . Operators 1 | . 1 . Fabricators . | . . . Repair Stations . | . . . Recycling Units . | . . . Scanalyzers . | . . . Garrison Access . | . . . Data Cores Recovered . | . . . Used . | . . . Hacking Detections 3 | . 3 . Full Trace Events . | . . . Feedback Events . | . . . Feedback Blocked . | . . . Robot Schematics Acquired . | . . . Robots Built . | . . . Authchips . | . . . Time . | . . . Total Robot Build Rating . | . . . Part Schematics Acquired . | . . . Parts Built . | . . . Authchips . | . . . Time . | . . . Total Part Build Rating . | . . . Parts Repaired . | . . . Time . | . . . Parts Recycled . | . . . Recycled Matter . | . . . Retrieved Matter . | . . . Retrieved Components . | . . . Parts Scanalyzed . | . . . Part Schematics Acquired . | . . . Parts Damaged . | . . . Bothacking | -11 -10 -10 ------------ Run | Yrd Mat Min Used RIF Installer . | . . . Robots Hacked . | . . . Non-combat . | . . . Combat . | . . . Robot Hacks Applied . | . . . Relay Couplers Released . | . . . Fabnet Peak Effective % . | . . . Robots Rewired . | . . . Allies Hacked . | . . . Hacks Repelled . | . . . Allies | -11 -10 -10 -------- Run | Yrd Mat Min Total Allies . | . . . Largest Group . | . . . Highest-Rated Group . | . . . Highest-Rated Ally . | . . . Total Orders . | . . . Ally Attacks . | . . . Total Damage . | . . . Kills . | . . . Allies Corrupted . | . . . Allies Melted . | . . . Intel | -11 -10 -10 ------- Run | Yrd Mat Min Active Infowar (turns) 12 | . . 12 Seismic 12 | . . 12 Robot Analysis Total . | . . . Derelict Logs Recovered . | . . . Drone Launches . | . . . Drone Recoveries . | . . . Exploration | -11 -10 -10 ------------- Run | Yrd Mat Min Turns Passed 1086 | 85 901 100 Spaces Moved 519 | 47 415 57 Core 4 | 3 . 1 Treads 442 | 44 342 56 Legs . | . . . Wheels 73 | . 73 . Hover . | . . . Flight . | . . . Fastest Speed 50 | 50 115 50 Average Speed 153 | 155 152 158 Slowest Speed 240 | 160 240 160 Overloaded Moves . | . . . Propulsion Burnouts . | . . . Robots Hopped . | . . . Potential Cave-ins . | . . . Cave-ins Triggered . | . . . Exploration Rate (%) 26 | 5 64 11 Regions Visited 2 Branch Regions 1 Pre-discovered Areas . | . . . Known Exits Taken . | . . . Unknown Exits Taken 2 | 1 1 . Scrap Searched . | . . . Spaces Dug . | . . . Terrain Destroyed . | . . . Melee . | . . . Projectile . | . . . AOE . | . . . Terrain Rammed . | . . . Walls Destroyed . | . . . Machines Disabled . | . . . Actions | -11 -10 -10 --------- Run | Yrd Mat Min Total 671 | 56 553 62 Wait 60 | . 59 1 Move 517 | 46 414 57 Hop . | . . . Pick Up 13 | 4 9 . Fast Attach 8 | 6 1 1 Attach 1 | . 1 . Detach . | . . . Swap 4 | . 3 1 Drop . | . . . Fire 68 | . 66 2 Melee . | . . . Ram . | . . . Kick . | . . . Crush . | . . . Escape Stasis . | . . . Rewire . | . . . Trap . | . . . Miscellaneous . | . . . Route ------- -11/Scrapyard -10/Materials (discovered 2 exits: [*Mat] / [*Min]) -10/Mines History --------- Turn | Location | Event 28 | -11/Scrapyard | Discovered new exit (range 16) 86 | -11/Scrapyard | Entered Materials 320 | -10/Materials | Build established: Mutant 712 | -10/Materials | Discovered new exit (range 16) 903 | -10/Materials | Discovered new exit (range 15) 987 | -10/Materials | Entered Mines 991 | -10/Mines | Met a Derelict bent on vengeance 1065 | -10/Mines | Assembled infested the area 1086 | -10/Mines | Core integrity fell below 50% 1086 | -10/Mines | Released all parts (6) 1087 | -10/Mines | Core integrity fell below 20% 1087 | -10/Mines | Destroyed by D-53 Grenadier with Mini Grenade Launcher Last Messages --------------- 01046_ K-01 Serf collects debris. 01053_ S-10 Pest suffers critical hit (Burn). 01053_ S-10 Pest destroyed. 01056_ S-10 Pest suffers critical hit (Burn). 01056_ Flight Unit melted. 01056_ S-10 Pest destroyed. 01062_ R-06 Scavenger collects Lgt. Ion Engine. 01065_ ALERT: Infestation in the mines, dispatching Demolisher response squad. 01065_ R-06 Scavenger collects Lgt. Assault Rifle. 01072_ R-06 Scavenger collects Imp. Heat Sink. 01083_ C-30 ARC bursts open, deploying its payload. 01083_ D-53 Grenadier unfolds itself. 01083_ Med. Laser destroyed. 01086_ Released Lgt. Treads. 01086_ Released Lrg. Storage Unit. 01086_ Released Med. Laser. 01086_ Released Ion Engine. 01086_ Released Lgt. Treads. 01086_ Released Seismic Detector. 01086_ Acquired Hacking Suite. Map ----- +----------------------------------------------------+ | ?????????????????????????????????????????????????? | | ?????????????????????????????????????????????????? | | ?????????????????????????????????????????????????? | | ?????????????????????????????????????????????????? | | ?????????????????????????????????????????????????? | | ?????????????????????????????????????????????????? | | ?????????????????????????????????????????????????? | | ?????????????????????????????????????????????????? | | ?????????????????????????????????????????????????? | | ?????????????????????????#???????????????????????? | | ????????????????????????# ??????????????????????? | | ??????????????????#??### ??????????????????????? | | ?????????????????? ##? ??????????????????????? | | ?????????????????? ? ???????????????????????? | | ?????????????????? ? ???????????????????????? | | ??????????????????# ? ???????????????????????? | | ??????????????????# #?# #???????????????????????? | | ??????????????????# #?# #???????????????????????? | | ??????????????????# #?# #???????????????????????? | | ????????????####??# #?# #???????????????????????? | | ????????????# #??# ### ####????????????????????? | | ???????????## #??# # ##???????????????????? | | ??????????## #??# # * #???????????????????? | | ??????????# #### # !=[! #???????????????????? | | ??????????# d =!= #???????????????????? | | ??????????## % d [=@ # #????????????????? | | ???????????## #%## = #????????????????? | | ????????????#!####%## ####????????????????? | | ????????????# #??# ### #???????????????????? | | ##### #??# #?# # ##???????????????????? | | ???# #??# #?########????????????????????? | | ??# ########??# #?????????????????????????????? | | ?????????????????# #?????????????????????????????? | | ?????????????????# #?????????????????????????????? | | ?????????????????# #?????????????????????????????? | | ?????????????????# #?????????????????????????????? | | ????????????????? ?????????????????????????????? | | ?????????????????"" ?????????????????????????????? | | ?????????????????"" ?????????????????????????????? | | ?????????????????"" ?????????????????????????????? | | ???????????????? ????????????????????????????? | | ????????????????""" "????????????????????????????? | | ??????????????????? "????????????????????????????? | | ??????????????????? "????????????????????????????? | | ??????????????????? ????????????????????????????? | | ????????????????????#????????????????????????????? | | ?????????????????????????????????????????????????? | | ?????????????????????????????????????????????????? | | ?????????????????????????????????????????????????? | | | +----------------------------------------------------+ Best States ------------- Heat Dissipation 39 Energy Generation 10 Energy Capacity 250 Matter Stores 300 Matter Capacity 300 Sight Range 16 Terrain Scan Density 10 Evasion (%) 40 Recoil Reduction 2 Item Schematics ----------------- None Robot Schematics ------------------ None Fabricated ------------ Nothing Repaired ---------- Nothing Alien Tech Used ----------------- None Achievements -------------- None Challenges ------------ None Game ------ Seed HellfireDispersalTube Manual? 0 Play Time 00:08:02 Cumulative 25.2 hours Start 2025.10.09 @ 11:39:46 End 2025.10.09 @ 11:46:56 Sessions 1 Manual Loads 0 Difficulty Rogue Special Mode None Game No. 70 Rogue 63 Adventurer 7 Explorer 0 Win Type - Total 0 Types 0/0/0/0/0/0/0/0/0/0 Lore% 5 Gallery% 22 Achievement% 22 Wizard Run 0 Options --------- Layout 0 ASCII 0 Keyboard 1 Movement Vi Keybinds 0 Fullscreen 1 Font 18/SmallcapsGlow Map View 112x50 Zoom Use 2% Tactical HUD 1 Map Filters NONE Filters NONE Steam X RUN: 26084007-f869-4d73-ab69-e55bc29ec7fb